[Event "Campeonato de Aragon Individual 2020 Fase Final"]
[Site "Zaragoza"]
[Date "2020.10.18"]
[Round "6.1"]
[White "Gines Esteo, Pedro Antonio"]
[Black "Eizaguerri Floris, Maria"]
[Result "1-0"]
[TimeControl "90+30 sg"]
[WhiteElo "2434"]
[BlackElo "2167"]

1. d4 {[%clk 00:03:03]} {[%emt 00:09:16]} d5 {[%clk 00:03:03]} 2. Nf3 {[%clk
00:03:04]} {[%emt 00:00:01]} Nf6 {[%clk 00:03:03]} {[%emt 00:00:03]} 3. Bf4
{[%clk 00:02:42]} {[%emt 00:00:24]} c5 {[%clk 00:03:01]} {[%emt 00:00:04]} 4.
c3 {[%clk 00:02:42]} {[%emt 00:00:02]} Nc6 {[%clk 00:02:57]} {[%emt 00:00:06]}
5. e3 {[%clk 00:02:37]} {[%emt 00:00:07]} Qb6 {[%clk 00:02:54]} {[%emt
00:00:05]} 6. Qb3 {[%clk 00:02:32]} {[%emt 00:00:07]} c4 {[%clk 00:02:55]} 7.
Qc2 {[%clk 00:02:23]} {[%emt 00:00:11]} Bf5 {[%clk 00:02:55]} {[%emt 00:00:01]}
8. Qc1 {[%clk 00:02:24]} {[%emt 00:00:02]} Nh5 {[%clk 00:02:24]} {[%emt
00:00:32]} 9. Bg3 {[%clk 00:01:58]} {[%emt 00:00:28]} Nxg3 {[%clk 00:02:22]}
{[%emt 00:00:04]} 10. hxg3 {[%clk 00:01:59]} h6 {[%clk 00:02:10]} {[%emt
00:00:14]} 11. Nbd2 {[%clk 00:01:58]} {[%emt 00:00:03]} Qd8 {[%clk 00:01:56]}
{[%emt 00:00:15]} 12. b3 {[%clk 00:00:58]} {[%emt 00:01:02]} b5 {[%clk
00:01:57]} {[%emt 00:00:02]} 13. a4 {[%clk 00:00:58]} {[%emt 00:00:02]} a6
{[%clk 00:01:53]} {[%emt 00:00:05]} 14. Be2 {[%clk 00:00:23]} {[%emt 00:00:37]}
e6 {[%clk 00:01:51]} {[%emt 00:00:04]} 15. O-O {[%clk 00:00:19]} {[%emt
00:00:06]} Be7 {[%clk 00:01:49]} {[%emt 00:00:04]} 16. Qb2 {[%clk 00:00:09]}
{[%emt 00:00:12]} O-O {[%emt 00:01:02]} 17. axb5 axb5 {[%clk 00:00:50]} 18.
Rxa8 {[%clk 00:00:12]} Qxa8 {[%clk 00:00:51]} {[%emt 00:00:02]} 19. Ra1 {[%clk
00:00:13]} Qb8 {[%clk 00:00:37]} {[%emt 00:00:15]} 20. b4 {[%clk 00:00:08]}
{[%emt 00:00:08]} Rc8 {[%clk 00:00:22]} {[%emt 00:00:17]} 21. Nb1 {[%clk
00:00:04]} {[%emt 00:00:06]} Bxb1 {[%clk 00:00:12]} {[%emt 00:00:11]} 22. Qxb1
{[%clk 00:00:05]} {[%emt 00:00:01]} Rc7 {[%clk 00:00:09]} {[%emt 00:00:05]} 23.
Nd2 {[%clk 00:00:05]} {[%emt 00:00:02]} Ra7 {[%clk 00:00:10]} {[%emt 00:00:01]}
24. Rxa7 {[%clk 00:00:03]} {[%emt 00:00:04]} Qxa7 {[%clk 00:00:11]} 25. Kf1
{[%clk 00:00:05]} Qa3 {[%clk 00:00:10]} {[%emt 00:00:03]} 26. Qc2 {[%clk
00:00:06]} Qa1+ {[%clk 00:00:08]} {[%emt 00:00:05]} 27. Qb1 {[%clk 00:00:04]}
{[%emt 00:00:03]} Qxc3 {[%clk 00:00:08]} {[%emt 00:00:02]} 28. Ke1 {[%clk
00:00:05]} {[%emt 00:00:02]} Nxb4 {[%clk 00:00:09]} {[%emt 00:00:02]} 29. Kd1
{[%clk 00:00:05]} {[%emt 00:00:01]} Qa3 {[%clk 00:00:05]} {[%emt 00:00:05]} 30.
e4 {[%clk 00:00:04]} {[%emt 00:00:03]} Qa4+ {[%clk 00:00:06]} {[%emt 00:00:02]}
31. Ke1 {[%clk 00:00:05]} Nc2+ {[%clk 00:00:06]} {[%emt 00:00:02]} 32. Kf1
{[%clk 00:00:07]} b4 {[%clk 00:00:06]} {[%emt 00:00:02]} 33. exd5 {[%clk
00:00:07]} exd5 {[%clk 00:00:08]} 34. Nxc4 {[%clk 00:00:07]} {[%emt 00:00:02]}
dxc4 {[%clk 00:00:07]} {[%emt 00:00:03]} 35. Bxc4 {[%clk 00:00:09]} Nxd4 {[%clk
00:00:06]} {[%emt 00:00:03]} 36. Kg1 {[%clk 00:00:08]} {[%emt 00:00:02]} b3
{[%clk 00:00:05]} {[%emt 00:00:03]} 37. Bd5 {[%clk 00:00:08]} {[%emt 00:00:03]}
Qa2 {[%clk 00:00:03]} {[%emt 00:00:03]} 38. Qg6 {[%clk 00:00:08]} {[%emt
00:00:02]} Qa1+ {[%clk 00:00:03]} {[%emt 00:00:03]} 39. Kh2 {[%clk 00:00:08]}
{[%emt 00:00:01]} Kf8 {[%clk 00:00:00]} {[%emt 00:00:03]} 40. Qxf7# {[%clk
00:00:08]} {[%emt 00:00:01]} 1-0